[Event "*** Titled Tuesday Blitz"]
[Site "Chess.com"]
[Date "2020.05.05"]
[Round "2"]
[White "bancsoo"]
[Black "VNeimer"]
[Result "1-0"]
[WhiteElo "2736"]
[BlackElo "2490"]
[TimeControl "180+1"]
[EndTime "10:19:06 PDT"]
[Termination "bancsoo won by resignation"]

1. Nf3 {[%clk 0:03:00.9]} 1... c5 {[%clk 0:02:57.6]} 2. c4 {[%clk 0:02:59.6]}
2... Nc6 {[%clk 0:02:57.6]} 3. d4 {[%clk 0:02:58.8]} 3... cxd4 {[%clk
0:02:58.5]} 4. Nxd4 {[%clk 0:02:59.5]} 4... Nf6 {[%clk 0:02:58.2]} 5. g3 {[%clk
0:02:59.7]} 5... e5 {[%clk 0:02:53.2]} 6. Nb5 {[%clk 0:02:59.1]} 6... d6 {[%clk
0:02:35.3]} 7. Bg2 {[%clk 0:02:57.9]} 7... a6 {[%clk 0:02:35.1]} 8. N5c3 {[%clk
0:02:56.7]} 8... Be7 {[%clk 0:02:33.2]} 9. O-O {[%clk 0:02:56.2]} 9... O-O
{[%clk 0:02:32.1]} 10. Nd5 {[%clk 0:02:50.3]} 10... Nxd5 {[%clk 0:02:23.9]} 11.
Bxd5 {[%clk 0:02:49]} 11... Be6 {[%clk 0:02:19.7]} 12. Nc3 {[%clk 0:02:48.6]}
12... Rc8 {[%clk 0:02:19.3]} 13. b3 {[%clk 0:02:43.1]} 13... Bg5 {[%clk
0:02:06.5]} 14. Bb2 {[%clk 0:02:40.7]} 14... Qe7 {[%clk 0:01:46.9]} 15. e3
{[%clk 0:02:39.6]} 15... Rfd8 {[%clk 0:01:45]} 16. Qe2 {[%clk 0:02:31]} 16... f5
{[%clk 0:01:43]} 17. Rfd1 {[%clk 0:02:28.5]} 17... Bf6 {[%clk 0:01:42.1]} 18.
Bxe6+ {[%clk 0:02:26.5]} 18... Qxe6 {[%clk 0:01:41.9]} 19. Nd5 {[%clk
0:02:27.1]} 19... Ne7 {[%clk 0:01:41.8]} 20. e4 {[%clk 0:02:22.2]} 20... Nxd5
{[%clk 0:01:29.5]} 21. Rxd5 {[%clk 0:02:21.6]} 21... Be7 {[%clk 0:01:26]} 22.
exf5 {[%clk 0:02:17.7]} 22... Qxf5 {[%clk 0:01:26.9]} 23. f4 {[%clk 0:02:15]}
23... Bf6 {[%clk 0:01:20.3]} 24. Re1 {[%clk 0:02:07.5]} 24... Re8 {[%clk
0:01:06.8]} 25. fxe5 {[%clk 0:01:53.5]} 25... dxe5 {[%clk 0:01:07.7]} 26. Qe4
{[%clk 0:01:51.6]} 26... Qxe4 {[%clk 0:01:00.6]} 27. Rxe4 {[%clk 0:01:51.4]}
27... Rc7 {[%clk 0:00:59.1]} 28. Kf2 {[%clk 0:01:46.9]} 28... Kf7 {[%clk
0:00:58.6]} 29. Ke2 {[%clk 0:01:43]} 29... h5 {[%clk 0:00:54.1]} 30. a4 {[%clk
0:01:42.1]} 30... Kg6 {[%clk 0:00:49.8]} 31. h3 {[%clk 0:01:39.1]} 31... Kf5
{[%clk 0:00:49.9]} 32. Kf3 {[%clk 0:01:39]} 32... g5 {[%clk 0:00:45.3]} 33. g4+
{[%clk 0:01:28.8]} 33... hxg4+ {[%clk 0:00:46.2]} 34. hxg4+ {[%clk 0:01:29.4]}
34... Kg6 {[%clk 0:00:46.8]} 35. Rd6 {[%clk 0:01:28.3]} 35... Rc6 {[%clk
0:00:46.6]} 36. Rd5 {[%clk 0:01:22.8]} 36... Rb6 {[%clk 0:00:45.4]} 37. Rd3
{[%clk 0:01:17.4]} 37... Rd8 {[%clk 0:00:43.4]} 38. Rde3 {[%clk 0:00:54.9]}
38... Rd1 {[%clk 0:00:35.5]} 39. Bxe5 {[%clk 0:00:52.4]} 39... Rf1+ {[%clk
0:00:35.5]} 40. Kg2 {[%clk 0:00:49.6]} 40... Rb1 {[%clk 0:00:35.2]} 41. Bxf6
{[%clk 0:00:48.3]} 41... Kxf6 {[%clk 0:00:36.1]} 42. Rf3+ {[%clk 0:00:44.3]}
42... Kg6 {[%clk 0:00:36.3]} 43. Ree3 {[%clk 0:00:44.5]} 43... a5 {[%clk
0:00:33.1]} 44. Rf5 {[%clk 0:00:38]} 44... R1xb3 {[%clk 0:00:30.2]} 45. Rxb3
{[%clk 0:00:38.2]} 45... Rxb3 {[%clk 0:00:31.1]} 46. Rxa5 {[%clk 0:00:38.5]}
46... Rc3 {[%clk 0:00:28.7]} 47. Rc5 {[%clk 0:00:36.1]} 47... Ra3 {[%clk
0:00:27.3]} 48. a5 {[%clk 0:00:36.2]} 48... Kf6 {[%clk 0:00:23.2]} 49. Kf2
{[%clk 0:00:35.1]} 49... Kg6 {[%clk 0:00:20.5]} 50. Rb5 {[%clk 0:00:34.5]} 50...
Rc3 {[%clk 0:00:20.1]} 51. Rb6+ {[%clk 0:00:32.8]} 51... Kg7 {[%clk 0:00:19.2]}
52. Rxb7+ {[%clk 0:00:33.5]} 52... Kf6 {[%clk 0:00:19.8]} 53. Rc7 {[%clk
0:00:32.4]} 53... Ra3 {[%clk 0:00:19.2]} 54. Rc5 {[%clk 0:00:32.3]} 54... Ke6
{[%clk 0:00:18.6]} 55. Rxg5 {[%clk 0:00:31.9]} 55... Kd6 {[%clk 0:00:18.9]} 56.
a6 {[%clk 0:00:31.8]} 56... Kc6 {[%clk 0:00:18]} 57. Rg6+ {[%clk 0:00:30.8]}
57... Kc5 {[%clk 0:00:17.9]} 58. g5 {[%clk 0:00:31.4]} 58... Kxc4 {[%clk
0:00:18.2]} 59. Rf6 {[%clk 0:00:31.9]} 59... Kd4 {[%clk 0:00:17.8]} 60. g6
{[%clk 0:00:32.4]} 60... Ra2+ {[%clk 0:00:17.4]} 61. Kg3 {[%clk 0:00:32.4]}
61... Ra1 {[%clk 0:00:18.3]} 62. Kg4 {[%clk 0:00:31.9]} 62... Rg1+ {[%clk
0:00:18.1]} 63. Kf5 {[%clk 0:00:31.8]} 63... Kd5 {[%clk 0:00:18.3]} 64. a7
{[%clk 0:00:31]} 64... Rf1+ {[%clk 0:00:19.2]} 65. Kg5 {[%clk 0:00:31.5]} 65...
Rg1+ {[%clk 0:00:19.9]} 66. Kh6 {[%clk 0:00:32]} 66... Ke5 {[%clk 0:00:20.5]}
67. Rf8 {[%clk 0:00:30.6]} 67... Ke6 {[%clk 0:00:20.7]} 68. a8=Q {[%clk
0:00:29.9]} 68... Rh1+ {[%clk 0:00:21.6]} 69. Qxh1 {[%clk 0:00:29.4]} 1-0

[Event "*** Titled Tuesday Blitz"]
[Site "Chess.com"]
[Date "2020.05.05"]
[Round "2"]
[White "Roenko_Artur"]
[Black "WPWPWP-2015"]
[Result "0-1"]
[WhiteElo "2195"]
[BlackElo "2433"]
[TimeControl "180+1"]
[EndTime "10:19:07 PDT"]
[Termination "WPWPWP-2015 won by resignation"]

1. e4 {[%clk 0:02:59.4]} 1... e5 {[%clk 0:02:59.1]} 2. Nf3 {[%clk 0:02:56.3]}
2... Nc6 {[%clk 0:02:59.1]} 3. d4 {[%clk 0:02:54.3]} 3... exd4 {[%clk
0:02:58.7]} 4. Nxd4 {[%clk 0:02:54.3]} 4... Nf6 {[%clk 0:02:59.1]} 5. Nxc6
{[%clk 0:02:53.2]} 5... bxc6 {[%clk 0:02:58.1]} 6. e5 {[%clk 0:02:51.8]} 6...
Qe7 {[%clk 0:02:57.9]} 7. Qe2 {[%clk 0:02:48.1]} 7... Nd5 {[%clk 0:02:57.6]} 8.
c4 {[%clk 0:02:48.3]} 8... Nb6 {[%clk 0:02:56.8]} 9. f4 {[%clk 0:02:46]} 9...
Qe6 {[%clk 0:02:55.6]} 10. Nc3 {[%clk 0:02:28.9]} 10... Bb4 {[%clk 0:02:54.5]}
11. Qe4 {[%clk 0:01:56.5]} 11... f5 {[%clk 0:02:21.4]} 12. Qd3 {[%clk
0:01:15.5]} 12... Na4 {[%clk 0:02:01.9]} 13. Be2 {[%clk 0:00:41]} 13... Nc5
{[%clk 0:01:51.9]} 14. Qc2 {[%clk 0:00:36.2]} 14... Ne4 {[%clk 0:01:47.8]} 15.
Bd2 {[%clk 0:00:29.3]} 15... Nxd2 {[%clk 0:01:45.4]} 16. Qxd2 {[%clk 0:00:27]}
16... Ba6 {[%clk 0:01:40.3]} 17. Qd4 {[%clk 0:00:22.5]} 17... c5 {[%clk
0:01:35.8]} 18. Qd5 {[%clk 0:00:18.3]} 18... Kf7 {[%clk 0:01:11.2]} 19. Qxe6+
{[%clk 0:00:17.4]} 19... dxe6 {[%clk 0:01:11.4]} 20. Kd2 {[%clk 0:00:17.3]}
20... Rad8+ {[%clk 0:01:09.5]} 21. Kc2 {[%clk 0:00:16.6]} 21... Rd4 {[%clk
0:01:10]} 22. b3 {[%clk 0:00:08.4]} 22... Rxf4 {[%clk 0:01:07.5]} 23. Bf3 {[%clk
0:00:07.8]} 23... Rd8 {[%clk 0:01:04.6]} 24. Rad1 {[%clk 0:00:07.9]} 24... Rfd4
{[%clk 0:01:02]} 25. Rxd4 {[%clk 0:00:07]} 25... cxd4 {[%clk 0:01:01.8]} 26. Na4
{[%clk 0:00:06.7]} 26... d3+ {[%clk 0:01:00.9]} 27. Kd1 {[%clk 0:00:06.7]} 27...
c5 {[%clk 0:00:59.5]} 28. Nb2 {[%clk 0:00:05.7]} 28... Bc3 {[%clk 0:00:55.8]}
29. Na4 {[%clk 0:00:04.9]} 29... Bb4 {[%clk 0:00:51.5]} 30. Nb2 {[%clk
0:00:03.9]} 30... g5 {[%clk 0:00:51.4]} 31. Na4 {[%clk 0:00:03.1]} 31... g4
{[%clk 0:00:49.9]} 32. Bc6 {[%clk 0:00:02.4]} 32... Rc8 {[%clk 0:00:46.1]} 33.
Bb5 {[%clk 0:00:02.6]} 33... Bb7 {[%clk 0:00:44.6]} 34. Rg1 {[%clk 0:00:02.3]}
34... h5 {[%clk 0:00:40.6]} 35. Nb2 {[%clk 0:00:02.6]} 35... Rd8 {[%clk
0:00:39.4]} 36. Na4 {[%clk 0:00:03]} 36... h4 {[%clk 0:00:38.8]} 37. Nb2 {[%clk
0:00:02.6]} 37... Be4 {[%clk 0:00:37.8]} 38. Na4 {[%clk 0:00:01.9]} 38... Rh8
{[%clk 0:00:35.1]} 39. Nb2 {[%clk 0:00:01.9]} 39... h3 {[%clk 0:00:34.6]} 40. g3
{[%clk 0:00:01.4]} 40... Bf3+ {[%clk 0:00:29]} 41. Kc1 {[%clk 0:00:01.5]} 41...
d2+ {[%clk 0:00:27.8]} 42. Kb1 {[%clk 0:00:01.9]} 42... Rd8 {[%clk 0:00:25]} 43.
Nd1 {[%clk 0:00:02.4]} 43... Be4+ {[%clk 0:00:22.5]} 44. Kb2 {[%clk 0:00:02.8]}
44... Ba5 {[%clk 0:00:20.2]} 45. a3 {[%clk 0:00:03.2]} 45... Rh8 {[%clk
0:00:18.8]} 46. b4 {[%clk 0:00:03.1]} 46... cxb4 {[%clk 0:00:16.6]} 47. axb4
{[%clk 0:00:03.3]} 47... Bxb4 {[%clk 0:00:17.1]} 48. Kb3 {[%clk 0:00:03.5]}
48... Ba5 {[%clk 0:00:17.2]} 49. Rf1 {[%clk 0:00:03]} 49... Bg2 {[%clk
0:00:16.1]} 50. Rf2 {[%clk 0:00:02.5]} 50... Bb6 {[%clk 0:00:14.5]} 51. Re2
{[%clk 0:00:01.9]} 51... f4 {[%clk 0:00:14.4]} 52. Rxd2 {[%clk 0:00:02]} 52...
fxg3 {[%clk 0:00:14.3]} 53. hxg3 {[%clk 0:00:01.9]} 53... h2 {[%clk 0:00:14.3]}
0-1

[Event "*** Titled Tuesday Blitz"]
[Site "Chess.com"]
[Date "2020.05.05"]
[Round "2"]
[White "MisiekZielony"]
[Black "jlandaw"]
[Result "1-0"]
[WhiteElo "2140"]
[BlackElo "2377"]
[TimeControl "180+1"]
[EndTime "10:19:09 PDT"]
[Termination "MisiekZielony won by resignation"]

1. c4 {[%clk 0:03:00.8]} 1... e5 {[%clk 0:02:59.4]} 2. Nc3 {[%clk 0:03:00.5]}
2... Nc6 {[%clk 0:02:59.8]} 3. Nf3 {[%clk 0:03:00]} 3... g6 {[%clk 0:03:00]} 4.
d4 {[%clk 0:02:59.9]} 4... Bg7 {[%clk 0:03:00]} 5. dxe5 {[%clk 0:02:57.5]} 5...
Nxe5 {[%clk 0:02:59.8]} 6. Nxe5 {[%clk 0:02:56.8]} 6... Bxe5 {[%clk 0:03:00.7]}
7. Bd2 {[%clk 0:02:56.3]} 7... d6 {[%clk 0:03:00.2]} 8. g3 {[%clk 0:02:54.5]}
8... Ne7 {[%clk 0:02:59.7]} 9. Bg2 {[%clk 0:02:48.8]} 9... O-O {[%clk
0:02:59.6]} 10. O-O {[%clk 0:02:37.7]} 10... Re8 {[%clk 0:02:58]} 11. b3 {[%clk
0:02:29.5]} 11... Nf5 {[%clk 0:02:54]} 12. Rc1 {[%clk 0:02:27.7]} 12... h5
{[%clk 0:02:52.6]} 13. h4 {[%clk 0:02:09.7]} 13... Rb8 {[%clk 0:02:30.9]} 14.
Bg5 {[%clk 0:02:04.6]} 14... Bf6 {[%clk 0:02:20.7]} 15. Qd2 {[%clk 0:01:57.7]}
15... Be6 {[%clk 0:01:49.9]} 16. Ne4 {[%clk 0:01:55.7]} 16... Bxg5 {[%clk
0:01:29]} 17. hxg5 {[%clk 0:01:55.8]} 17... Kh8 {[%clk 0:01:15]} 18. Qb2+ {[%clk
0:01:54.5]} 18... Ng7 {[%clk 0:01:13.8]} 19. Nf6 {[%clk 0:01:52]} 19... Re7
{[%clk 0:01:13]} 20. Bf3 {[%clk 0:01:25.9]} 20... Bf5 {[%clk 0:01:04.2]} 21. Kg2
{[%clk 0:01:24.1]} 21... Re5 {[%clk 0:00:46]} 22. e4 {[%clk 0:01:14.3]} 22...
Bc8 {[%clk 0:00:42.4]} 23. Rh1 {[%clk 0:01:13.5]} 23... Rxg5 {[%clk 0:00:31.9]}
24. Rh4 {[%clk 0:01:01.9]} 24... Qe7 {[%clk 0:00:30.7]} 25. Nd5 {[%clk
0:00:56.5]} 25... Qe5 {[%clk 0:00:13.9]} 26. Qd2 {[%clk 0:00:55.8]} 26... c6
{[%clk 0:00:12.6]} 27. Nf4 {[%clk 0:00:51.6]} 27... Qe7 {[%clk 0:00:12.4]} 28.
Nd3 {[%clk 0:00:50.7]} 28... Kg8 {[%clk 0:00:12.2]} 29. Re1 {[%clk 0:00:47.9]}
29... Ne6 {[%clk 0:00:12.1]} 30. e5 {[%clk 0:00:43]} 30... Bd7 {[%clk
0:00:07.3]} 31. Rhe4 {[%clk 0:00:37.2]} 31... d5 {[%clk 0:00:06.5]} 32. cxd5
{[%clk 0:00:30.3]} 32... cxd5 {[%clk 0:00:07.4]} 33. Rb4 {[%clk 0:00:30.6]}
33... Bc6 {[%clk 0:00:07.4]} 34. Nf4 {[%clk 0:00:30]} 34... Nxf4+ {[%clk
0:00:05.9]} 35. Qxf4 {[%clk 0:00:29.9]} 35... Rf5 {[%clk 0:00:04.6]} 36. Qd4
{[%clk 0:00:29.2]} 36... b6 {[%clk 0:00:04.9]} 37. Rc1 {[%clk 0:00:26.1]} 37...
Qb7 {[%clk 0:00:03.7]} 38. a4 {[%clk 0:00:21.3]} 38... Re8 {[%clk 0:00:03]} 39.
Re1 {[%clk 0:00:20.2]} 39... Qd7 {[%clk 0:00:03.2]} 40. Re3 {[%clk 0:00:18.5]}
40... Re6 {[%clk 0:00:03.1]} 41. g4 {[%clk 0:00:18.2]} 41... Qe8 {[%clk
0:00:03.8]} 42. gxf5 {[%clk 0:00:18.1]} 42... gxf5 {[%clk 0:00:04.7]} 43. Qf4
{[%clk 0:00:17.8]} 43... Qf8 {[%clk 0:00:05.2]} 44. Rd4 {[%clk 0:00:17.6]} 44...
Rg6+ {[%clk 0:00:05.6]} 45. Kf1 {[%clk 0:00:17.7]} 45... Kh8 {[%clk 0:00:06.3]}
46. Qh4 {[%clk 0:00:17.2]} 46... Rg7 {[%clk 0:00:06.8]} 47. Bxh5 {[%clk
0:00:17]} 47... Rh7 {[%clk 0:00:07.7]} 48. Rh3 {[%clk 0:00:17.4]} 48... Qg7
{[%clk 0:00:07.8]} 49. Qf6 {[%clk 0:00:17.6]} 49... Qxf6 {[%clk 0:00:07.8]} 50.
exf6 {[%clk 0:00:18]} 50... Rh6 {[%clk 0:00:07.8]} 51. Rdh4 {[%clk 0:00:18.6]}
51... Rxf6 {[%clk 0:00:07.6]} 52. Bxf7+ {[%clk 0:00:18.6]} 52... Kg7 {[%clk
0:00:08.5]} 53. Rh7+ {[%clk 0:00:19]} 53... Kf8 {[%clk 0:00:09.4]} 54. Bh5
{[%clk 0:00:19]} 54... Be8 {[%clk 0:00:09]} 55. Bxe8 {[%clk 0:00:18.5]} 55...
Kxe8 {[%clk 0:00:09.2]} 56. R3h6 {[%clk 0:00:19]} 1-0

[Event "*** Titled Tuesday Blitz"]
[Site "Chess.com"]
[Date "2020.05.05"]
[Round "2"]
[White "talman67"]
[Black "Blitzking642"]
[Result "0-1"]
[WhiteElo "2555"]
[BlackElo "2311"]
[TimeControl "180+1"]
[EndTime "10:19:10 PDT"]
[Termination "Blitzking642 won by resignation"]

1. e4 {[%clk 0:03:00.9]} 1... c5 {[%clk 0:02:59.7]} 2. Nf3 {[%clk 0:03:00.9]}
2... Nc6 {[%clk 0:02:59.7]} 3. Bb5 {[%clk 0:03:00.4]} 3... g6 {[%clk 0:02:59]}
4. Bxc6 {[%clk 0:02:59.8]} 4... dxc6 {[%clk 0:02:53.2]} 5. d3 {[%clk 0:02:59.6]}
5... Bg7 {[%clk 0:02:52.9]} 6. h3 {[%clk 0:02:58.9]} 6... e5 {[%clk 0:02:53.2]}
7. a3 {[%clk 0:02:54.4]} 7... Qe7 {[%clk 0:02:46.7]} 8. Qd2 {[%clk 0:02:49.4]}
8... a5 {[%clk 0:02:44.8]} 9. a4 {[%clk 0:02:47.8]} 9... Nf6 {[%clk 0:02:41.7]}
10. Na3 {[%clk 0:02:47.7]} 10... Nd7 {[%clk 0:02:41.2]} 11. Nc4 {[%clk
0:02:47.6]} 11... b6 {[%clk 0:02:38.7]} 12. O-O {[%clk 0:02:45.8]} 12... O-O
{[%clk 0:02:35.8]} 13. Nh2 {[%clk 0:02:45.9]} 13... Rd8 {[%clk 0:02:31]} 14. f4
{[%clk 0:02:45.6]} 14... Ba6 {[%clk 0:02:27.7]} 15. Qf2 {[%clk 0:02:29.9]} 15...
exf4 {[%clk 0:02:18.2]} 16. Bxf4 {[%clk 0:02:17.9]} 16... Bxc4 {[%clk
0:02:17.1]} 17. dxc4 {[%clk 0:02:18.8]} 17... Bxb2 {[%clk 0:02:15.4]} 18. Rad1
{[%clk 0:02:19.3]} 18... Ne5 {[%clk 0:02:04.7]} 19. Kh1 {[%clk 0:01:55.2]} 19...
Rxd1 {[%clk 0:01:52.8]} 20. Rxd1 {[%clk 0:01:56.1]} 20... Rd8 {[%clk 0:01:50.4]}
21. Rf1 {[%clk 0:01:53.9]} 21... Bd4 {[%clk 0:01:25.4]} 22. Qg3 {[%clk
0:01:53.7]} 22... Qe6 {[%clk 0:01:12.6]} 23. Qg5 {[%clk 0:01:45.2]} 23... Re8
{[%clk 0:01:02.3]} 24. Bxe5 {[%clk 0:01:39]} 24... Qxe5 {[%clk 0:01:00.9]} 25.
Qh6 {[%clk 0:01:21]} 25... Qxe4 {[%clk 0:00:54.7]} 26. Nf3 {[%clk 0:01:18.9]}
26... Bg7 {[%clk 0:00:51.3]} 27. Qd2 {[%clk 0:01:14.8]} 27... Qxc4 {[%clk
0:00:49.8]} 28. Rb1 {[%clk 0:01:09.3]} 28... Qd5 {[%clk 0:00:37.5]} 29. Qf2
{[%clk 0:01:02.8]} 29... Bd4 {[%clk 0:00:31.3]} 30. Qh4 {[%clk 0:00:56.2]} 30...
Qe4 {[%clk 0:00:26.9]} 31. Re1 {[%clk 0:00:30.5]} 31... Be3 {[%clk 0:00:17.2]}
32. Qg3 {[%clk 0:00:18.3]} 32... Qxa4 {[%clk 0:00:12.3]} 33. Ng5 {[%clk
0:00:13.7]} 33... Qd4 {[%clk 0:00:12]} 34. Qf3 {[%clk 0:00:11]} 34... f6 {[%clk
0:00:10.9]} 35. Qxc6 {[%clk 0:00:05.8]} 35... Re7 {[%clk 0:00:08.7]} 36. Ne6
{[%clk 0:00:03.9]} 36... Qe5 {[%clk 0:00:06.5]} 37. Nc7 {[%clk 0:00:03.2]} 37...
Qxc7 {[%clk 0:00:05.5]} 38. Qxc7 {[%clk 0:00:02.6]} 38... Rxc7 {[%clk
0:00:05.6]} 39. Rxe3 {[%clk 0:00:02.9]} 39... a4 {[%clk 0:00:05.8]} 40. Re8+
{[%clk 0:00:02.4]} 40... Kf7 {[%clk 0:00:05.5]} 41. Ra8 {[%clk 0:00:03.2]} 41...
b5 {[%clk 0:00:05.9]} 42. c4 {[%clk 0:00:03.6]} 42... b4 {[%clk 0:00:05.4]} 43.
Rxa4 {[%clk 0:00:04.1]} 43... Rb7 {[%clk 0:00:05.1]} 44. Ra2 {[%clk 0:00:04.2]}
44... b3 {[%clk 0:00:05.4]} 45. Rb2 {[%clk 0:00:04.8]} 45... Ke6 {[%clk
0:00:05.6]} 46. Kg1 {[%clk 0:00:05.5]} 46... Ke5 {[%clk 0:00:06]} 47. Kf2 {[%clk
0:00:06.4]} 47... Kd4 {[%clk 0:00:06.6]} 48. Ke2 {[%clk 0:00:07.1]} 48... Kc3
{[%clk 0:00:06.7]} 49. Rd2 {[%clk 0:00:06.7]} 49... b2 {[%clk 0:00:06.6]} 50.
Rd3+ {[%clk 0:00:07.6]} 50... Kxc4 {[%clk 0:00:06.4]} 51. Rd2 {[%clk 0:00:08.4]}
51... b1=Q {[%clk 0:00:06.5]} 52. Rd1 {[%clk 0:00:08.4]} 52... Rb2+ {[%clk
0:00:06.8]} 53. Rd2 {[%clk 0:00:08.2]} 53... Rxd2+ {[%clk 0:00:06.4]} 54. Kxd2
{[%clk 0:00:09.1]} 54... Qb2+ {[%clk 0:00:07]} 55. Ke3 {[%clk 0:00:09.3]} 55...
Qxg2 {[%clk 0:00:07.9]} 0-1

[Event "*** Titled Tuesday Blitz"]
[Site "Chess.com"]
[Date "2020.05.05"]
[Round "2"]
[White "VinzentSpitzl"]
[Black "Doraemon7"]
[Result "0-1"]
[WhiteElo "2394"]
[BlackElo "2653"]
[TimeControl "180+1"]
[EndTime "10:19:11 PDT"]
[Termination "Doraemon7 won by resignation"]

1. e4 {[%clk 0:03:00.9]} 1... e5 {[%clk 0:02:58.9]} 2. Nf3 {[%clk 0:03:00.9]}
2... Nc6 {[%clk 0:02:59.5]} 3. Bb5 {[%clk 0:03:01.1]} 3... a6 {[%clk 0:02:57.9]}
4. Ba4 {[%clk 0:03:01.1]} 4... Nf6 {[%clk 0:02:55.6]} 5. O-O {[%clk 0:02:58.2]}
5... Be7 {[%clk 0:02:55.7]} 6. Re1 {[%clk 0:02:57.6]} 6... b5 {[%clk 0:02:55.1]}
7. Bb3 {[%clk 0:02:57.8]} 7... d6 {[%clk 0:02:56]} 8. c3 {[%clk 0:02:57.5]} 8...
O-O {[%clk 0:02:56.5]} 9. h3 {[%clk 0:02:58]} 9... Nb8 {[%clk 0:02:56.7]} 10. d4
{[%clk 0:02:57.4]} 10... Nbd7 {[%clk 0:02:57.3]} 11. Nbd2 {[%clk 0:02:57]} 11...
Bb7 {[%clk 0:02:57.9]} 12. Bc2 {[%clk 0:02:57.5]} 12... Re8 {[%clk 0:02:58]} 13.
Nf1 {[%clk 0:02:57.7]} 13... Bf8 {[%clk 0:02:58.7]} 14. Ng3 {[%clk 0:02:57.3]}
14... g6 {[%clk 0:02:59.3]} 15. a4 {[%clk 0:02:56.9]} 15... Nb6 {[%clk
0:02:57.9]} 16. a5 {[%clk 0:02:52.7]} 16... Nbd7 {[%clk 0:02:57.9]} 17. Bg5
{[%clk 0:02:47.1]} 17... h6 {[%clk 0:02:57]} 18. Bd2 {[%clk 0:02:44.6]} 18...
Bg7 {[%clk 0:02:53.2]} 19. Qe2 {[%clk 0:02:36.9]} 19... exd4 {[%clk 0:02:37.2]}
20. cxd4 {[%clk 0:02:36.7]} 20... Nxe4 {[%clk 0:02:23.5]} 21. Nxe4 {[%clk
0:02:21.4]} 21... d5 {[%clk 0:02:23.8]} 22. Ne5 {[%clk 0:02:06.5]} 22... dxe4
{[%clk 0:02:04.5]} 23. Rad1 {[%clk 0:01:35]} 23... Nxe5 {[%clk 0:01:31.6]} 24.
dxe5 {[%clk 0:01:33.7]} 24... Rxe5 {[%clk 0:01:23]} 25. Bxh6 {[%clk 0:00:53.1]}
25... Qe7 {[%clk 0:01:11]} 26. Bf4 {[%clk 0:00:41.6]} 26... Rf5 {[%clk
0:00:59.6]} 27. Bg3 {[%clk 0:00:36.6]} 27... Re8 {[%clk 0:01:00]} 28. Bb3 {[%clk
0:00:35.7]} 28... Be5 {[%clk 0:00:54.3]} 29. Qe3 {[%clk 0:00:33.8]} 29... Bxg3
{[%clk 0:00:49.9]} 30. Qxg3 {[%clk 0:00:34.7]} 30... Kg7 {[%clk 0:00:43.8]} 31.
Rd2 {[%clk 0:00:26.1]} 31... Re5 {[%clk 0:00:41.3]} 32. Qc3 {[%clk 0:00:21.1]}
32... c5 {[%clk 0:00:37.4]} 33. Red1 {[%clk 0:00:20.5]} 33... b4 {[%clk
0:00:33]} 34. Qe3 {[%clk 0:00:19.4]} 34... Bc6 {[%clk 0:00:29.6]} 35. Bc4 {[%clk
0:00:19.7]} 35... Bb5 {[%clk 0:00:28.7]} 36. b3 {[%clk 0:00:17]} 36... Qf6
{[%clk 0:00:21.4]} 37. Rd6 {[%clk 0:00:15.3]} 37... Qf5 {[%clk 0:00:21.6]} 38.
Bxb5 {[%clk 0:00:12.1]} 38... axb5 {[%clk 0:00:22.5]} 39. a6 {[%clk 0:00:12.5]}
39... R8e7 {[%clk 0:00:19.6]} 40. Ra1 {[%clk 0:00:11.6]} 40... R5e6 {[%clk
0:00:16]} 41. Rxe6 {[%clk 0:00:08.9]} 41... Qxe6 {[%clk 0:00:07.3]} 42. a7
{[%clk 0:00:09.3]} 42... Rxa7 {[%clk 0:00:05]} 43. Rxa7 {[%clk 0:00:09.4]} 43...
Qd5 {[%clk 0:00:05.9]} 44. Ra1 {[%clk 0:00:07.5]} 44... c4 {[%clk 0:00:05.7]}
45. Rb1 {[%clk 0:00:05]} 45... c3 {[%clk 0:00:05.4]} 46. Qe2 {[%clk 0:00:04.4]}
46... Qd3 {[%clk 0:00:05.5]} 47. Re1 {[%clk 0:00:02.9]} 47... c2 {[%clk
0:00:05.4]} 48. Kf1 {[%clk 0:00:02.8]} 48... Qxb3 {[%clk 0:00:05.6]} 49. Qxe4
{[%clk 0:00:01.9]} 49... Qc3 {[%clk 0:00:06.1]} 50. Qe5+ {[%clk 0:00:02.1]}
50... Qxe5 {[%clk 0:00:06.1]} 51. Rxe5 {[%clk 0:00:02]} 51... b3 {[%clk
0:00:07]} 52. Rxb5 {[%clk 0:00:01.6]} 52... c1=Q+ {[%clk 0:00:07.4]} 53. Ke2
{[%clk 0:00:02.5]} 53... b2 {[%clk 0:00:08.3]} 0-1